Workbook

Sheet 지방도집계표
A1: 2015년도 도로 교통량 조사 결과 집계표(지방도 및 국가지원지방도)
A2: 노선별 | C2: 2015 교통량 조사결과 | AC2: 시간 | AD2: 2014 조사결과 | AE2: 2015 조사결과 | AF2: 증감 | AG2: 증감율
C3: 시간 | D3: 계 | E3: 1종 (승용) | G3: 2종 (버스) | I3: 3종 (소형트럭) | K3: 4종 (소형트럭) | M3: 5종 (중형트럭) | O3: 6종 (중형트럭) | Q3: 7종 (중형트럭) | S3: 8종 (대형트럭) | U3: 9종 (대형트럭) | W3: 10종 (대형트럭) | Y3: 11종 (대형트럭) | AA3: 12종 (대형트럭)
E4: 상행 | F4: 하행 | G4: 상행 | H4: 하행 | I4: 상행 | J4: 하행 | K4: 상행 | L4: 하행 | M4: 상행 | N4: 하행 | O4: 상행 | P4: 하행 | Q4: 상행 | R4: 하행 | S4: 상행 | T4: 하행 | U4: 상행 | V4: 하행 | W4: 상행 | X4: 하행 | Y4: 상행 | Z4: 하행 | AA4: 상행 | AB4: 하행
A5: 합계 (5지점) | C5: 합계 | D5: =SUM(D8,D11,D14,D17,D20) -> 7,108 | E5: =SUM(E8,E11,E14,E17,E20) -> 2,540 | F5: =SUM(F8,F11,F14,F17,F20) -> 2,348 | G5: 186 | H5: 177 | I5: 672 | J5: 613 | K5: 94 | L5: 95 | M5: 169 | N5: 124 | O5: 37 | P5: 31 | Q5: 3 | R5: 10 | S5: 0 | T5: 6 | U5: 0 | V5: 2 | W5: 0 | X5: 0 | Y5: 0 | Z5: 1 | AA5: 0 | AB5: 0 | AC5: 합계 | AD5: 16,589 | AE5: =SUM(AE6:AE7) -> 17,697 | AF5: =AE5-AD5 -> 1,108 | AG5: =AF5/AE5 -> 6%
C6: 주간 | D6: =SUM(D9,D12,D15,D18,D21) -> 3,167 | E6: =SUM(E9,E12,E15,E18,E21) -> 1,026 | F6: 1,049 | G6: 103 | H6: 95 | I6: 308 | J6: 320 | K6: 42 | L6: 59 | M6: 70 | N6: 55 | O6: 18 | P6: 17 | Q6: 3 | R6: 2 | S6: 0 | T6: 0 | U6: 0 | V6: 0 | W6: 0 | X6: 0 | Y6: 0 | Z6: 0 | AA6: 0 | AB6: 0 | AC6: 주간 (07~19) | AD6: 12,958 | AE6: =SUM(AE9,AE12,AE15,AE18,AE21) -> 13,555 | AF6: =AE6-AD6 -> 597 | AG6: =AF6/AE6 -> 4%
C7: 야간 | D7: =SUM(D10,D13,D16,D19,D22) -> 3,941 | E7: =SUM(E10,E13,E16,E19,E22) -> 1,514 | F7: 1,299 | G7: 83 | H7: 82 | I7: 364 | J7: 293 | K7: 52 | L7: 36 | M7: 99 | N7: 69 | O7: 19 | P7: 14 | Q7: 0 | R7: 8 | S7: 0 | T7: 6 | U7: 0 | V7: 2 | W7: 0 | X7: 0 | Y7: 0 | Z7: 1 | AA7: 0 | AB7: 0 | AC7: 야간 (19~07) | AD7: 3,631 | AE7: =SUM(AE10,AE13,AE16,AE19,AE22) -> 4,142 | AF7: 511 | AG7: 12%
A8: 22-01 (나진<=>여수) | C8: 소계 | D8: =SUM(E8:AB8) -> 2,062 | E8: =SUM(E9:E10) -> 666 | F8: =SUM(F9:F10) -> 677 | G8: 42 | H8: 33 | I8: 224 | J8: 209 | K8: 30 | L8: 39 | M8: 48 | N8: 41 | O8: 28 | P8: 24 | Q8: 0 | R8: 1 | S8: 0 | T8: 0 | U8: 0 | V8: 0 | W8: 0 | X8: 0 | Y8: 0 | Z8: 0 | AA8: 0 | AB8: 0 | AC8: 소계 | AD8: 4,457 | AE8: =SUM(AE9:AE10) -> 4,876 | AF8: 419 | AG8: 9%
C9: 08~11 | D9: =SUM(E9:AB9) -> 958 | E9: 233 | F9: 351 | G9: 25 | H9: 17 | I9: 95 | J9: 126 | K9: 22 | L9: 33 | M9: 17 | N9: 13 | O9: 12 | P9: 14 | Q9: 0 | R9: 0 | S9: 0 | T9: 0 | U9: 0 | V9: 0 | W9: 0 | X9: 0 | Y9: 0 | Z9: 0 | AA9: 0 | AB9: 0 | AC9: 주간 (07~19) | AD9: 3,611 | AE9: 3,882 | AF9: 271 | AG9: 7%
C10: 15~18 | D10: =SUM(E10:AB10) -> 1,104 | E10: 433 | F10: 326 | G10: 17 | H10: 16 | I10: 129 | J10: 83 | K10: 8 | L10: 6 | M10: 31 | N10: 28 | O10: 16 | P10: 10 | Q10: 0 | R10: 1 | S10: 0 | T10: 0 | U10: 0 | V10: 0 | W10: 0 | X10: 0 | Y10: 0 | Z10: 0 | AA10: 0 | AB10: 0 | AC10: 야간 (19~07) | AD10: 846 | AE10: 994 | AF10: 148 | AG10: 15%
A11: 22-02 (석창<=>순천) | C11: 소계 | D11: =SUM(E11:AB11) -> 3,319 | E11: =SUM(E12:E13) -> 1,361 | F11: =SUM(F12:F13) -> 1,169 | G11: 63 | H11: 82 | I11: 276 | J11: 243 | K11: 23 | L11: 18 | M11: 28 | N11: 19 | O11: 9 | P11: 7 | Q11: 3 | R11: 9 | S11: 0 | T11: 6 | U11: 0 | V11: 2 | W11: 0 | X11: 0 | Y11: 0 | Z11: 1 | AA11: 0 | AC11: 소계 | AD11: 8,496 | AE11: =SUM(AE12:AE13) -> 8,634 | AF11: 138 | AG11: 2%
C12: 08~11 | D12: =SUM(E12:AB12) -> 1,408 | E12: 609 | F12: 430 | G12: 33 | H12: 45 | I12: 146 | J12: 91 | K12: 9 | L12: 8 | M12: 15 | N12: 8 | O12: 6 | P12: 3 | Q12: 3 | R12: 2 | S12: 0 | T12: 0 | U12: 0 | V12: 0 | W12: 0 | X12: 0 | Y12: 0 | Z12: 0 | AA12: 0 | AB12: 0 | AC12: 주간 (07~19) | AD12: 6,355 | AE12: 6,434 | AF12: 79 | AG12: 1%
C13: 15~18 | D13: 1,911 | E13: 752 | F13: 739 | G13: 30 | H13: 37 | I13: 130 | J13: 152 | K13: 14 | L13: 10 | M13: 13 | N13: 11 | O13: 3 | P13: 4 | Q13: 0 | R13: 7 | S13: 0 | T13: 6 | U13: 0 | V13: 2 | W13: 0 | X13: 0 | Y13: 0 | Z13: 1 | AA13: 0 | AB13: 0 | AC13: 야간 (19~07) | AD13: 2,141 | AE13: 2,200 | AF13: 59 | AG13: 3%
A14: 22-03 (장수<=>여수) | C14: 소계 | D14: =SUM(E14:AB14) -> 1,172 | E14: =SUM(E15:E16) -> 331 | F14: =SUM(F15:F16) -> 334 | G14: 60 | H14: 42 | I14: 96 | J14: 95 | K14: 31 | L14: 33 | M14: 89 | N14: 61 | O14: 0 | P14: 0 | Q14: 0 | R14: 0 | S14: 0 | T14: 0 | U14: 0 | V14: 0 | W14: 0 | X14: 0 | Y14: 0 | Z14: 0 | AA14: 0 | AB14: 0 | AC14: 소계 | AD14: 2,442 | AE14: =SUM(AE15:AE16) -> 2,791 | AF14: 349 | AG14: 13%
C15: 08~11 | D15: 543 | E15: 111 | F15: 185 | G15: 33 | H15: 20 | I15: 40 | J15: 67 | K15: 8 | L15: 13 | M15: 35 | N15: 31 | O15: 0 | P15: 0 | Q15: 0 | R15: 0 | S15: 0 | T15: 0 | U15: 0 | V15: 0 | W15: 0 | X15: 0 | Y15: 0 | Z15: 0 | AA15: 0 | AB15: 0 | AC15: 주간 (07~19) | AD15: 2,020 | AE15: 2,107 | AF15: 87 | AG15: 4%
C16: 15~18 | D16: 629 | E16: 220 | F16: 149 | G16: 27 | H16: 22 | I16: 56 | J16: 28 | K16: 23 | L16: 20 | M16: 54 | N16: 30 | O16: 0 | P16: 0 | Q16: 0 | R16: 0 | S16: 0 | T16: 0 | U16: 0 | V16: 0 | W16: 0 | X16: 0 | Y16: 0 | Z16: 0 | AA16: 0 | AB16: 0 | AC16: 야간 (19~07) | AD16: 422 | AE16: 684 | AF16: 262 | AG16: 38%
A17: 863-01 (일반<=>서촌) | C17: 소계 | D17: 343 | E17: =SUM(E18:E19) -> 103 | F17: =SUM(F18:F19) -> 98 | G17: 11 | H17: 11 | I17: 52 | J17: 46 | K17: 10 | L17: 5 | M17: 4 | N17: 3 | O17: 0 | P17: 0 | Q17: 0 | R17: 0 | S17: 0 | T17: 0 | U17: 0 | V17: 0 | W17: 0 | X17: 0 | Y17: 0 | Z17: 0 | AA17: 0 | AB17: 0 | AC17: 소계 | AD17: 676 | AE17: =SUM(AE18:AE19) -> 800 | AF17: 124 | AG17: 16%
C18: 08~11 | D18: 149 | E18: 33 | F18: 47 | G18: 6 | H18: 6 | I18: 17 | J18: 26 | K18: 3 | L18: 5 | M18: 3 | N18: 3 | O18: 0 | P18: 0 | Q18: 0 | R18: 0 | S18: 0 | T18: 0 | U18: 0 | V18: 0 | W18: 0 | X18: 0 | Y18: 0 | Z18: 0 | AA18: 0 | AB18: 0 | AC18: 주간 (07~19) | AD18: 542 | AE18: 653 | AF18: 111 | AG18: 17%
C19: 15~18 | D19: 194 | E19: 70 | F19: 51 | G19: 5 | H19: 5 | I19: 35 | J19: 20 | K19: 7 | L19: 0 | M19: 1 | N19: 0 | O19: 0 | P19: 0 | Q19: 0 | R19: 0 | S19: 0 | T19: 0 | U19: 0 | V19: 0 | W19: 0 | X19: 0 | Y19: 0 | Z19: 0 | AA19: 0 | AB19: 0 | AC19: 야간 (19~07) | AD19: 134 | AE19: 147 | AF19: 13 | AG19: 9%
A20: 863-04 (소라<=>서촌) | C20: 소계 | D20: 212 | E20: =SUM(E21:E22) -> 79 | F20: =SUM(F21:F22) -> 70 | G20: 10 | H20: 9 | I20: 24 | J20: 20 | K20: 0 | L20: 0 | M20: 0 | N20: 0 | O20: 0 | P20: 0 | Q20: 0 | R20: 0 | S20: 0 | T20: 0 | U20: 0 | V20: 0 | W20: 0 | X20: 0 | Y20: 0 | Z20: 0 | AA20: 0 | AB20: 0 | AC20: 소계 | AD20: 518 | AE20: =SUM(AE21:AE22) -> 596 | AF20: 78 | AG20: 13%
C21: 08~11 | D21: 109 | E21: 40 | F21: 36 | G21: 6 | H21: 7 | I21: 10 | J21: 10 | K21: 0 | L21: 0 | M21: 0 | N21: 0 | O21: 0 | P21: 0 | Q21: 0 | R21: 0 | S21: 0 | T21: 0 | U21: 0 | V21: 0 | W21: 0 | X21: 0 | Y21: 0 | Z21: 0 | AA21: 0 | AB21: 0 | AC21: 주간 (07~19) | AD21: 430 | AE21: 479 | AF21: 49 | AG21: 10%
C22: 15~18 | D22: 103 | E22: 39 | F22: 34 | G22: 4 | H22: 2 | I22: 14 | J22: 10 | K22: 0 | L22: 0 | M22: 0 | N22: 0 | O22: 0 | P22: 0 | Q22: 0 | R22: 0 | S22: 0 | T22: 0 | U22: 0 | V22: 0 | W22: 0 | X22: 0 | Y22: 0 | Z22: 0 | AA22: 0 | AB22: 0 | AC22: 야간 (19~07) | AD22: 88 | AE22: 117 | AF22: 29 | AG22: 25%
Z28: `

Sheet 군도집계표
B1: 2015년도 도로 교통량 조사 결과 집계표(군도)
B2: 노선별 | D2: 시간 | E2: 2015 교통량 조사결과 | AD2: 시간 | AE2: 2014 조사결과 | AF2: 2015 조사결과 | AG2: 증감 | AH2: 증감율
E3: 계 | F3: 1종 (승용) | H3: 2종 (버스) | J3: 3종 (소형트럭) | L3: 4종 (소형트럭) | N3: 5종 (중형트럭) | P3: 6종 (중형트럭) | R3: 7종 (중형트럭) | T3: 8종 (대형트럭) | V3: 9종 (대형트럭) | X3: 10종 (대형트럭) | Z3: 11종 (대형트럭) | AB3: 12종 (대형트럭)
F4: 상행 | G4: 하행 | H4: 상행 | I4: 하행 | J4: 상행 | K4: 하행 | L4: 상행 | M4: 하행 | N4: 상행 | O4: 하행 | P4: 상행 | Q4: 하행 | R4: 상행 | S4: 하행 | T4: 상행 | U4: 하행 | V4: 상행 | W4: 하행 | X4: 상행 | Y4: 하행 | Z4: 상행 | AA4: 하행 | AB4: 상행 | AC4: 하행
B5: 합 계 (18지점) | D5: 합계 | E5: =SUM(E6:E7) -> 14,741 | F5: =SUM(F6:F7) -> 4,912 | G5: =SUM(G6:G7) -> 4,517 | H5: 294 | I5: 291 | J5: 1,795 | K5: 1,639 | L5: 208 | M5: 139 | N5: 116 | O5: 111 | P5: 238 | Q5: 206 | R5: 98 | S5: 86 | T5: 4 | U5: 5 | V5: 3 | W5: 4 | X5: 35 | Y5: 28 | Z5: 1 | AA5: 1 | AB5: 5 | AC5: 5 | AD5: 합계 | AE5: 25,795 | AF5: =SUM(AF6:AF7) -> 33,072 | AG5: =AF5-AE5 -> 7,277 | AH5: =AG5/AF5 -> 22%
D6: 주간 | E6: =SUM(F6:AC6) -> 7,209 | F6: =SUM(F9,F12,F15,F18,F21,F24,F27,F30,F33,F36,F39,F42,F45,F48,F51,F54,F57,F60) -> 2,226 | G6: =SUM(G9,G12,G15,G18,G21,G24,G27,G30,G33,G36,G39,G42,G45,G48,G51,G54,G57,G60) -> 2,218 | H6: 160 | I6: 156 | J6: 907 | K6: 864 | L6: 101 | M6: 92 | N6: 68 | O6: 72 | P6: 98 | Q6: 112 | R6: 31 | S6: 51 | T6: 0 | U6: 4 | V6: 0 | W6: 3 | X6: 18 | Y6: 19 | Z6: 0 | AA6: 0 | AB6: 4 | AC6: 5 | AD6: 주간 07~19 | AE6: 21,574 | AF6: =SUM(AF9,AF12,AF15,AF18,AF21,AF24,AF27,AF30,AF33,AF36,AF39,AF42,AF45,AF48,AF51,AF54,AF57,AF60) -> 27,308 | AG6: =AF6-AE6 -> 5,734 | AH6: =AG6/AF6 -> 21%
D7: 야간 | E7: =SUM(F7:AC7) -> 7,532 | F7: =SUM(F10,F13,F16,F19,F22,F25,F28,F31,F34,F37,F40,F43,F46,F49,F52,F55,F58,F61) -> 2,686 | G7: =SUM(G10,G13,G16,G19,G22,G25,G28,G31,G34,G37,G40,G43,G46,G49,G52,G55,G58,G61) -> 2,299 | H7: 134 | I7: 135 | J7: 888 | K7: 775 | L7: 107 | M7: 47 | N7: 48 | O7: 39 | P7: 140 | Q7: 94 | R7: 67 | S7: 35 | T7: 4 | U7: 1 | V7: 3 | W7: 1 | X7: 17 | Y7: 9 | Z7: 1 | AA7: 1 | AB7: 1 | AC7: 0 | AD7: 야간 19~07 | AE7: 4,221 | AF7: =SUM(AF10,AF13,AF16,AF19,AF22,AF25,AF28,AF31,AF34,AF37,AF40,AF43,AF46,AF49,AF52,AF55,AF58,AF61) -> 5,764 | AG7: 1,543 | AH7: 27%
B8: 1호 | C8: 36-02-01 (임포-죽포) | D8: 소계 | E8: =SUM(F8:AC8) -> 1,097 | F8: =SUM(F9:F10) -> 398 | G8: =SUM(G9:G10) -> 271 | H8: 51 | I8: 45 | J8: 136 | K8: 124 | L8: 8 | M8: 10 | N8: 33 | O8: 15 | P8: 2 | Q8: 4 | R8: 0 | S8: 0 | T8: 0 | U8: 0 | V8: 0 | W8: 0 | X8: 0 | Y8: 0 | Z8: 0 | AA8: 0 | AB8: 0 | AC8: 0 | AD8: 소계 | AE8: 2,302 | AF8: =SUM(AF9:AF10) -> 2,580 | AG8: 278 | AH8: 11%
D9: 08~11 | E9: =SUM(F9:AC9) -> 442 | F9: 151 | G9: 88 | H9: 29 | I9: 23 | J9: 67 | K9: 58 | L9: 3 | M9: 6 | N9: 10 | O9: 3 | P9: 1 | Q9: 3 | R9: 0 | S9: 0 | T9: 0 | U9: 0 | V9: 0 | W9: 0 | X9: 0 | Y9: 0 | Z9: 0 | AA9: 0 | AB9: 0 | AC9: 0 | AD9: 주간 07~19 | AE9: 1,932 | AF9: 2,114 | AG9: 182 | AH9: 9%
D10: 15~18 | E10: 655 | F10: 247 | G10: 183 | H10: 22 | I10: 22 | J10: 69 | K10: 66 | L10: 5 | M10: 4 | N10: 23 | O10: 12 | P10: 1 | Q10: 1 | R10: 0 | S10: 0 | T10: 0 | U10: 0 | V10: 0 | W10: 0 | X10: 0 | Y10: 0 | Z10: 0 | AA10: 0 | AB10: 0 | AC10: 0 | AD10: 야간 19~07 | AE10: 370 | AF10: 466 | AG10: 96 | AH10: 21%
B11: 2호 | C11: 36-02-02 (군내-대율) | D11: 소계 | E11: 770 | F11: =SUM(F12:F13) -> 307 | G11: =SUM(G12:G13) -> 201 | H11: 15 | I11: 20 | J11: 107 | K11: 98 | L11: 3 | M11: 6 | N11: 4 | O11: 9 | P11: 0 | Q11: 0 | R11: 0 | S11: 0 | T11: 0 | U11: 0 | V11: 0 | W11: 0 | X11: 0 | Y11: 0 | Z11: 0 | AA11: 0 | AB11: 0 | AC11: 0 | AD11: 소계 | AE11: 1,740 | AF11: =SUM(AF12:AF13) -> 1,830 | AG11: 90 | AH11: 5%
D12: 08~11 | E12: 365 | F12: 139 | G12: 97 | H12: 9 | I12: 14 | J12: 39 | K12: 50 | L12: 0 | M12: 5 | N12: 4 | O12: 8 | P12: 0 | Q12: 0 | R12: 0 | S12: 0 | T12: 0 | U12: 0 | V12: 0 | W12: 0 | X12: 0 | Y12: 0 | Z12: 0 | AA12: 0 | AB12: 0 | AC12: 0 | AD12: 주간 07~19 | AE12: 1,466 | AF12: 1,573 | AG12: 107 | AH12: 7%
D13: 15~18 | E13: 405 | F13: 168 | G13: 104 | H13: 6 | I13: 6 | J13: 68 | K13: 48 | L13: 3 | M13: 1 | N13: 0 | O13: 1 | P13: 0 | Q13: 0 | R13: 0 | S13: 0 | T13: 0 | U13: 0 | V13: 0 | W13: 0 | X13: 0 | Y13: 0 | Z13: 0 | AA13: 0 | AB13: 0 | AC13: 0 | AD13: 야간 19~07 | AE13: 274 | AF13: 257 | AG13: -17 | AH13: -7%
B14: 4호 | C14: 36-02-03 (진두-하동) | D14: 소계 | E14: 495 | F14: =SUM(F15:F16) -> 161 | G14: =SUM(G15:G16) -> 169 | H14: 6 | I14: 7 | J14: 69 | K14: 79 | L14: 2 | M14: 2 | N14: 0 | O14: 0 | P14: 0 | Q14: 0 | R14: 0 | S14: 0 | T14: 0 | U14: 0 | V14: 0 | W14: 0 | X14: 0 | Y14: 0 | Z14: 0 | AA14: 0 | AB14: 0 | AC14: 0 | AD14: 소계 | AE14: 1,053 | AF14: =SUM(AF15:AF16) -> 1,106 | AG14: 53 | AH14: 5%
D15: 08~11 | E15: 231 | F15: 71 | G15: 73 | H15: 3 | I15: 3 | J15: 35 | K15: 43 | L15: 1 | M15: 2 | N15: 0 | O15: 0 | P15: 0 | Q15: 0 | R15: 0 | S15: 0 | T15: 0 | U15: 0 | V15: 0 | W15: 0 | X15: 0 | Y15: 0 | Z15: 0 | AA15: 0 | AB15: 0 | AC15: 0 | AD15: 주간 07~19 | AE15: 863 | AF15: 907 | AG15: 44 | AH15: 5%
D16: 15~18 | E16: 264 | F16: 90 | G16: 96 | H16: 3 | I16: 4 | J16: 34 | K16: 36 | L16: 1 | M16: 0 | N16: 0 | O16: 0 | P16: 0 | Q16: 0 | R16: 0 | S16: 0 | T16: 0 | U16: 0 | V16: 0 | W16: 0 | X16: 0 | Y16: 0 | Z16: 0 | AA16: 0 | AB16: 0 | AC16: 0 | AD16: 야간 19~07 | AE16: 190 | AF16: 199 | AG16: 9 | AH16: 5%
B17: 5호 | C17: 36-02-04 (송시-도실) | D17: 소계 | E17: 2,130 | F17: =SUM(F18:F19) -> 699 | G17: =SUM(G18:G19) -> 797 | H17: 31 | I17: 24 | J17: 253 | K17: 255 | L17: 24 | M17: 30 | N17: 0 | O17: 0 | P17: 8 | Q17: 9 | R17: 0 | S17: 0 | T17: 0 | U17: 0 | V17: 0 | W17: 0 | X17: 0 | Y17: 0 | Z17: 0 | AA17: 0 | AB17: 0 | AC17: 0 | AD17: 소계 | AE17: 3,956 | AF17: =SUM(AF18:AF19) -> 4,412 | AG17: 456 | AH17: 10%
D18: 08~11 | E18: 1,094 | F18: 373 | G18: 371 | H18: 19 | I18: 17 | J18: 148 | K18: 121 | L18: 19 | M18: 18 | N18: 0 | O18: 0 | P18: 5 | Q18: 3 | R18: 0 | S18: 0 | T18: 0 | U18: 0 | V18: 0 | W18: 0 | X18: 0 | Y18: 0 | Z18: 0 | AA18: 0 | AB18: 0 | AC18: 0 | AD18: 주간 07~19 | AE18: 3,499 | AF18: 3,898 | AG18: 399 | AH18: 10%
D19: 15~18 | E19: 1,036 | F19: 326 | G19: 426 | H19: 12 | I19: 7 | J19: 105 | K19: 134 | L19: 5 | M19: 12 | N19: 0 | O19: 0 | P19: 3 | Q19: 6 | R19: 0 | S19: 0 | T19: 0 | U19: 0 | V19: 0 | W19: 0 | X19: 0 | Y19: 0 | Z19: 0 | AA19: 0 | AB19: 0 | AC19: 0 | AD19: 야간 19~07 | AE19: 457 | AF19: 514 | AG19: 57 | AH19: 11%
B20: 7호 | C20: 36-02-05 (둔전-굴전) | D20: 소계 | E20: 449 | F20: =SUM(F21:F22) -> 161 | G20: =SUM(G21:G22) -> 164 | H20: 8 | I20: 7 | J20: 44 | K20: 65 | L20: 0 | M20: 0 | N20: 0 | O20: 0 | P20: 0 | Q20: 0 | R20: 0 | S20: 0 | T20: 0 | U20: 0 | V20: 0 | W20: 0 | X20: 0 | Y20: 0 | Z20: 0 | AA20: 0 | AB20: 0 | AC20: 0 | AD20: 소계 | AE20: 953 | AF20: =SUM(AF21:AF22) -> 1,052 | AG20: 99 | AH20: 9%
D21: 08~11 | E21: 184 | F21: 50 | G21: 64 | H21: 5 | I21: 4 | J21: 24 | K21: 37 | L21: 0 | M21: 0 | N21: 0 | O21: 0 | P21: 0 | Q21: 0 | R21: 0 | S21: 0 | T21: 0 | U21: 0 | V21: 0 | W21: 0 | X21: 0 | Y21: 0 | Z21: 0 | AA21: 0 | AB21: 0 | AC21: 0 | AD21: 주간 07~19 | AE21: 816 | AF21: 884 | AG21: 68 | AH21: 8%
D22: 15~18 | E22: 265 | F22: 111 | G22: 100 | H22: 3 | I22: 3 | J22: 20 | K22: 28 | L22: 0 | M22: 0 | N22: 0 | O22: 0 | P22: 0 | Q22: 0 | R22: 0 | S22: 0 | T22: 0 | U22: 0 | V22: 0 | W22: 0 | X22: 0 | Y22: 0 | Z22: 0 | AA22: 0 | AB22: 0 | AC22: 0 | AD22: 야간 19~07 | AE22: 137 | AF22: 168 | AG22: 31 | AH22: 18%
B23: 8호 | C23: 36-02-06 (풍류-내기) | D23: 소계 | E23: 944 | F23: =SUM(F24:F25) -> 287 | G23: =SUM(G24:G25) -> 260 | H23: 18 | I23: 19 | J23: 142 | K23: 118 | L23: 50 | M23: 10 | N23: 14 | O23: 25 | P23: 1 | Q23: 0 | R23: 0 | S23: 0 | T23: 0 | U23: 0 | V23: 0 | W23: 0 | X23: 0 | Y23: 0 | Z23: 0 | AA23: 0 | AB23: 0 | AC23: 0 | AD23: 소계 | AE23: 1,853 | AF23: =SUM(AF12:AF13) -> 1,830 | AG23: -23 | AH23: -1%
D24: 08~11 | E24: 517 | F24: 170 | G24: 129 | H24: 12 | I24: 9 | J24: 86 | K24: 64 | L24: 17 | M24: 3 | N24: 9 | O24: 18 | P24: 0 | Q24: 0 | R24: 0 | S24: 0 | T24: 0 | U24: 0 | V24: 0 | W24: 0 | X24: 0 | Y24: 0 | Z24: 0 | AA24: 0 | AB24: 0 | AC24: 0 | AD24: 주간 07~19 | AE24: 1,670 | AF24: 1,711 | AG24: 41 | AH24: 2%
D25: 15~18 | E25: 427 | F25: 117 | G25: 131 | H25: 6 | I25: 10 | J25: 56 | K25: 54 | L25: 33 | M25: 7 | N25: 5 | O25: 7 | P25: 1 | Q25: 0 | R25: 0 | S25: 0 | T25: 0 | U25: 0 | V25: 0 | W25: 0 | X25: 0 | Y25: 0 | Z25: 0 | AA25: 0 | AB25: 0 | AC25: 0 | AD25: 야간 19~07 | AE25: 183 | AF25: 193 | AG25: 10 | AH25: 5%
B26: 10호 | C26: 36-02-07 (달천-대포) | D26: 소계 | E26: 560 | F26: =SUM(F27:F28) -> 184 | G26: =SUM(G27:G28) -> 171 | H26: 7 | I26: 9 | J26: 70 | K26: 60 | L26: 16 | M26: 18 | N26: 8 | O26: 10 | P26: 5 | Q26: 1 | R26: 0 | S26: 1 | T26: 0 | U26: 0 | V26: 0 | W26: 0 | X26: 0 | Y26: 0 | Z26: 0 | AA26: 0 | AB26: 0 | AC26: 0 | AD26: 소계 | AE26: 1,233 | AF26: =SUM(AF27:AF28) -> 1,290 | AG26: 57 | AH26: 4%
D27: 08~11 | E27: 312 | F27: 107 | G27: 93 | H27: 4 | I27: 5 | J27: 37 | K27: 31 | L27: 11 | M27: 13 | N27: 4 | O27: 4 | P27: 1 | Q27: 1 | R27: 0 | S27: 1 | T27: 0 | U27: 0 | V27: 0 | W27: 0 | X27: 0 | Y27: 0 | Z27: 0 | AA27: 0 | AB27: 0 | AC27: 0 | AD27: 주간 07~19 | AE27: 1,012 | AF27: 1,051 | AG27: 39 | AH27: 4%
D28: 15~18 | E28: 248 | F28: 77 | G28: 78 | H28: 3 | I28: 4 | J28: 33 | K28: 29 | L28: 5 | M28: 5 | N28: 4 | O28: 6 | P28: 4 | Q28: 0 | R28: 0 | S28: 0 | T28: 0 | U28: 0 | V28: 0 | W28: 0 | X28: 0 | Y28: 0 | Z28: 0 | AA28: 0 | AB28: 0 | AC28: 0 | AD28: 야간 19~07 | AE28: 221 | AF28: 239 | AG28: 18 | AH28: 8%
B29: 11호 | C29: 36-02-08 (덕양-연화) | D29: 소계 | E29: 691 | F29: =SUM(F30:F31) -> 183 | G29: =SUM(G30:G31) -> 165 | H29: 6 | I29: 9 | J29: 65 | K29: 47 | L29: 4 | M29: 3 | N29: 4 | O29: 4 | P29: 99 | Q29: 95 | R29: 3 | S29: 4 | T29: 0 | U29: 0 | V29: 0 | W29: 0 | X29: 0 | Y29: 0 | Z29: 0 | AA29: 0 | AB29: 0 | AC29: 0 | AD29: 소계 | AE29: 1,518 | AF29: =SUM(AF30:AF31) -> 1,582 | AG29: 64 | AH29: =AF29/AE29-100% -> 4%
D30: 08~11 | E30: 343 | F30: 102 | G30: 73 | H30: 3 | I30: 4 | J30: 33 | K30: 21 | L30: 2 | M30: 1 | N30: 2 | O30: 3 | P30: 41 | Q30: 56 | R30: 0 | S30: 2 | T30: 0 | U30: 0 | V30: 0 | W30: 0 | X30: 0 | Y30: 0 | Z30: 0 | AA30: 0 | AB30: 0 | AC30: 0 | AD30: 주간 07~19 | AE30: 1,351 | AF30: 1,389 | AG30: 38 | AH30: =AF30/AE30-100% -> 3%
D31: 15~18 | E31: 348 | F31: 81 | G31: 92 | H31: 3 | I31: 5 | J31: 32 | K31: 26 | L31: 2 | M31: 2 | N31: 2 | O31: 1 | P31: 58 | Q31: 39 | R31: 3 | S31: 2 | T31: 0 | U31: 0 | V31: 0 | W31: 0 | X31: 0 | Y31: 0 | Z31: 0 | AA31: 0 | AB31: 0 | AC31: 0 | AD31: 야간 19~07 | AE31: 167 | AF31: 193 | AG31: 26 | AH31: 16%
B32: 12호 | C32: 36-02-09 (달천-신흥) | D32: 소계 | E32: 328 | F32: =SUM(F33:F34) -> 133 | G32: =SUM(G33:G34) -> 114 | H32: 6 | I32: 6 | J32: 30 | K32: 36 | L32: 1 | M32: 2 | N32: 0 | O32: 0 | P32: 0 | Q32: 0 | R32: 0 | S32: 0 | T32: 0 | U32: 0 | V32: 0 | W32: 0 | X32: 0 | Y32: 0 | Z32: 0 | AA32: 0 | AB32: 0 | AC32: 0 | AD32: 소계 | AE32: 670 | AF32: =SUM(AF33:AF34) -> 719 | AG32: 49 | AH32: 7%
D33: 08~11 | E33: 161 | F33: 60 | G33: 52 | H33: 3 | I33: 3 | J33: 18 | K33: 23 | L33: 1 | M33: 1 | N33: 0 | O33: 0 | P33: 0 | Q33: 0 | R33: 0 | S33: 0 | T33: 0 | U33: 0 | V33: 0 | W33: 0 | X33: 0 | Y33: 0 | Z33: 0 | AA33: 0 | AB33: 0 | AC33: 0 | AD33: 주간 07~19 | AE33: 564 | AF33: 601 | AG33: 37 | AH33: 7%
D34: 15~18 | E34: 167 | F34: 73 | G34: 62 | H34: 3 | I34: 3 | J34: 12 | K34: 13 | L34: 0 | M34: 1 | N34: 0 | O34: 0 | P34: 0 | Q34: 0 | R34: 0 | S34: 0 | T34: 0 | U34: 0 | V34: 0 | W34: 0 | X34: 0 | Y34: 0 | Z34: 0 | AA34: 0 | AB34: 0 | AC34: 0 | AD34: 야간 19~07 | AE34: 106 | AF34: 118 | AG34: 12 | AH34: 11%
B35: 14호 | C35: 36-02-10 (신풍-애양) | D35: 소계 | E35: 917 | F35: =SUM(F36:F37) -> 337 | G35: =SUM(G36:G37) -> 331 | H35: 18 | I35: 22 | J35: 90 | K35: 99 | L35: 14 | M35: 5 | N35: 0 | O35: 1 | P35: 0 | Q35: 0 | R35: 0 | S35: 0 | T35: 0 | U35: 0 | V35: 0 | W35: 0 | X35: 0 | Y35: 0 | Z35: 0 | AA35: 0 | AB35: 0 | AC35: 0 | AD35: 소계 | AE35: 1,525 | AF35: =SUM(AF36:AF37) -> 1,804 | AG35: 279 | AH35: 18%
D36: 08~11 | E36: 533 | F36: 143 | G36: 210 | H36: 12 | I36: 15 | J36: 63 | K36: 78 | L36: 7 | M36: 4 | N36: 0 | O36: 1 | P36: 0 | Q36: 0 | R36: 0 | S36: 0 | T36: 0 | U36: 0 | V36: 0 | W36: 0 | X36: 0 | Y36: 0 | Z36: 0 | AA36: 0 | AB36: 0 | AC36: 0 | AD36: 주간 07~19 | AE36: 1,323 | AF36: 1,600 | AG36: 277 | AH36: 21%
D37: 15~18 | E37: 384 | F37: 194 | G37: 121 | H37: 6 | I37: 7 | J37: 27 | K37: 21 | L37: 7 | M37: 1 | N37: 0 | O37: 0 | P37: 0 | Q37: 0 | R37: 0 | S37: 0 | T37: 0 | U37: 0 | V37: 0 | W37: 0 | X37: 0 | Y37: 0 | Z37: 0 | AA37: 0 | AB37: 0 | AC37: 0 | AD37: 야간 19~07 | AE37: 202 | AF37: 204 | AG37: 2 | AH37: 1%
B38: 15호 | C38: 36-02-11 (조화-연화) | D38: 소계 | E38: 1,199 | F38: =SUM(F39:F40) -> 454 | G38: =SUM(G39:G40) -> 337 | H38: 35 | I38: 29 | J38: 188 | K38: 101 | L38: 32 | M38: 8 | N38: 5 | O38: 3 | P38: 7 | Q38: 0 | R38: 0 | S38: 0 | T38: 0 | U38: 0 | V38: 0 | W38: 0 | X38: 0 | Y38: 0 | Z38: 0 | AA38: 0 | AB38: 0 | AC38: 0 | AD38: 소계 | AE38: 1,751 | AF38: =SUM(AF39:AF40) -> 2,777 | AG38: 1,026 | AH38: 59%
D39: 08~11 | E39: 498 | F39: 183 | G39: 153 | H39: 16 | I39: 17 | J39: 53 | K39: 51 | L39: 12 | M39: 5 | N39: 2 | O39: 2 | P39: 4 | Q39: 0 | R39: 0 | S39: 0 | T39: 0 | U39: 0 | V39: 0 | W39: 0 | X39: 0 | Y39: 0 | Z39: 0 | AA39: 0 | AB39: 0 | AC39: 0 | AD39: 주간 07~19 | AE39: 1,370 | AF39: 2,248 | AG39: 878 | AH39: 64%
D40: 15~18 | E40: 701 | F40: 271 | G40: 184 | H40: 19 | I40: 12 | J40: 135 | K40: 50 | L40: 20 | M40: 3 | N40: 3 | O40: 1 | P40: 3 | Q40: 0 | R40: 0 | S40: 0 | T40: 0 | U40: 0 | V40: 0 | W40: 0 | X40: 0 | Y40: 0 | Z40: 0 | AA40: 0 | AB40: 0 | AC40: 0 | AD40: 야간 19~07 | AE40: 381 | AF40: 529 | AG40: 148 | AH40: 39%
B41: 16호 | C41: 36-02-12 (상봉-여흥) | D41: 소계 | E41: 1,714 | F41: =SUM(F42:F43) -> 456 | G41: =SUM(G42:G43) -> 390 | H41: 23 | I41: 21 | J41: 165 | K41: 144 | L41: 23 | M41: 17 | N41: 8 | O41: 8 | P41: 107 | Q41: 89 | R41: 95 | S41: 81 | T41: 4 | U41: 5 | V41: 3 | W41: 4 | X41: 33 | Y41: 26 | Z41: 1 | AA41: 1 | AB41: 5 | AC41: 5 | AD41: 소계 | AE41: 2,691 | AF41: =SUM(AF42:AF43) -> 3,566 | AG41: 875 | AH41: 33%
D42: 08~11 | E42: 819 | F42: 221 | G42: 175 | H42: 11 | I42: 12 | J42: 81 | K42: 76 | L42: 10 | M42: 13 | N42: 4 | O42: 5 | P42: 40 | Q42: 43 | R42: 31 | S42: 48 | T42: 0 | U42: 4 | V42: 0 | W42: 3 | X42: 16 | Y42: 17 | Z42: 0 | AA42: 0 | AB42: 4 | AC42: 5 | AD42: 주간 07~19 | AE42: 2,213 | AF42: 2,940 | AG42: 727 | AH42: 33%
D43: 15~18 | E43: 895 | F43: 235 | G43: 215 | H43: 12 | I43: 9 | J43: 84 | K43: 68 | L43: 13 | M43: 4 | N43: 4 | O43: 3 | P43: 67 | Q43: 46 | R43: 64 | S43: 33 | T43: 4 | U43: 1 | V43: 3 | W43: 1 | X43: 17 | Y43: 9 | Z43: 1 | AA43: 1 | AB43: 1 | AC43: 0 | AD43: 야간 19~07 | AE43: 478 | AF43: 626 | AG43: 148 | AH43: 31%
B44: 17호 | C44: 36-02-13 (나진-창무) | D44: 소계 | E44: 285 | F44: =SUM(F45:F46) -> 84 | G44: =SUM(G45:G46) -> 81 | H44: 7 | I44: 7 | J44: 34 | K44: 43 | L44: 5 | M44: 5 | N44: 9 | O44: 7 | P44: 1 | Q44: 2 | R44: 0 | S44: 0 | T44: 0 | U44: 0 | V44: 0 | W44: 0 | X44: 0 | Y44: 0 | Z44: 0 | AA44: 0 | AB44: 0 | AC44: 0 | AD44: 소계 | AE44: 612 | AF44: =SUM(AF45:AF46) -> 654 | AG44: 42 | AH44: 7%
D45: 08~11 | E45: 140 | F45: 31 | G45: 42 | H45: 3 | I45: 4 | J45: 14 | K45: 22 | L45: 3 | M45: 3 | N45: 9 | O45: 6 | P45: 1 | Q45: 2 | R45: 0 | S45: 0 | T45: 0 | U45: 0 | V45: 0 | W45: 0 | X45: 0 | Y45: 0 | Z45: 0 | AA45: 0 | AB45: 0 | AC45: 0 | AD45: 주간 07~19 | AE45: 489 | AF45: 529 | AG45: 40 | AH45: 8%
D46: 15~18 | E46: 145 | F46: 53 | G46: 39 | H46: 4 | I46: 3 | J46: 20 | K46: 21 | L46: 2 | M46: 2 | N46: 0 | O46: 1 | P46: 0 | Q46: 0 | R46: 0 | S46: 0 | T46: 0 | U46: 0 | V46: 0 | W46: 0 | X46: 0 | Y46: 0 | Z46: 0 | AA46: 0 | AB46: 0 | AC46: 0 | AD46: 야간 19~07 | AE46: 123 | AF46: 125 | AG46: 2 | AH46: 2%
B47: 18호 | C47: 36-02-14 (용주-소호) | D47: 소계 | E47: 1,860 | F47: =SUM(F48:F49) -> 718 | G47: =SUM(G48:G49) -> 699 | H47: 21 | I47: 20 | J47: 183 | K47: 149 | L47: 18 | M47: 18 | N47: 13 | O47: 9 | P47: 7 | Q47: 5 | R47: 0 | S47: 0 | T47: 0 | U47: 0 | V47: 0 | W47: 0 | X47: 0 | Y47: 0 | Z47: 0 | AA47: 0 | AB47: 0 | AC47: 0 | AD47: 소계 | AE47: 1,241 | AF47: =SUM(AF48:AF49) -> 4,844 | AG47: 3,603 | AH47: 290%
D48: 08~11 | E48: 934 | F48: 266 | G48: 423 | H48: 13 | I48: 9 | J48: 92 | K48: 85 | L48: 9 | M48: 13 | N48: 9 | O48: 7 | P48: 5 | Q48: 3 | R48: 0 | S48: 0 | T48: 0 | U48: 0 | V48: 0 | W48: 0 | X48: 0 | Y48: 0 | Z48: 0 | AA48: 0 | AB48: 0 | AC48: 0 | AD48: 주간 07~19 | AE48: 853 | AF48: 3,477 | AG48: 2,624 | AH48: 308%
D49: 15~18 | E49: 926 | F49: 452 | G49: 276 | H49: 8 | I49: 11 | J49: 91 | K49: 64 | L49: 9 | M49: 5 | N49: 4 | O49: 2 | P49: 2 | Q49: 2 | R49: 0 | S49: 0 | T49: 0 | U49: 0 | V49: 0 | W49: 0 | X49: 0 | Y49: 0 | Z49: 0 | AA49: 0 | AB49: 0 | AC49: 0 | AD49: 야간 19~07 | AE49: 388 | AF49: 1,367 | AG49: 979 | AH49: 252%
B50: 21호 | C50: 36-02-15 (세포-서촌) | D50: 소계 | E50: 290 | F50: =SUM(F51:F52) -> 84 | G50: =SUM(G51:G52) -> 72 | H50: 6 | I50: 6 | J50: 40 | K50: 43 | L50: 5 | M50: 2 | N50: 14 | O50: 16 | P50: 1 | Q50: 1 | R50: 0 | S50: 0 | T50: 0 | U50: 0 | V50: 0 | W50: 0 | X50: 0 | Y50: 0 | Z50: 0 | AA50: 0 | AB50: 0 | AC50: 0 | AD50: 소계 | AE50: 599 | AF50: =SUM(AF51:AF52) -> 690 | AG50: 91 | AH50: 15%
D51: 08~11 | E51: 159 | F51: 30 | G51: 41 | H51: 3 | I51: 3 | J51: 22 | K51: 28 | L51: 4 | M51: 2 | N51: 12 | O51: 13 | P51: 0 | Q51: 1 | R51: 0 | S51: 0 | T51: 0 | U51: 0 | V51: 0 | W51: 0 | X51: 0 | Y51: 0 | Z51: 0 | AA51: 0 | AB51: 0 | AC51: 0 | AD51: 주간 07~19 | AE51: 497 | AF51: 586 | AG51: 89 | AH51: 18%
D52: 15~18 | E52: 131 | F52: 54 | G52: 31 | H52: 3 | I52: 3 | J52: 18 | K52: 15 | L52: 1 | M52: 0 | N52: 2 | O52: 3 | P52: 1 | Q52: 0 | R52: 0 | S52: 0 | T52: 0 | U52: 0 | V52: 0 | W52: 0 | X52: 0 | Y52: 0 | Z52: 0 | AA52: 0 | AB52: 0 | AC52: 0 | AD52: 야간 19~07 | AE52: 102 | AF52: 104 | AG52: 2 | AH52: 2%
B53: 20호 | C53: 36-02-16 (우학-송고) | D53: 소계 | E53: 380 | F53: =SUM(F54:F55) -> 74 | G53: =SUM(G54:G55) -> 87 | H53: 36 | I53: 40 | J53: 60 | K53: 70 | L53: 1 | M53: 0 | N53: 4 | O53: 4 | P53: 0 | Q53: 0 | R53: 0 | S53: 0 | T53: 0 | U53: 0 | V53: 0 | W53: 0 | X53: 2 | Y53: 2 | Z53: 0 | AA53: 0 | AB53: 0 | AC53: 0 | AD53: 소계 | AE53: 669 | AF53: =SUM(AF54:AF55) -> 768 | AG53: 99 | AH53: 15%
D54: 08~11 | E54: 160 | F54: 41 | G54: 28 | H54: 15 | I54: 14 | J54: 32 | K54: 21 | L54: 0 | M54: 0 | N54: 3 | O54: 2 | P54: 0 | Q54: 0 | R54: 0 | S54: 0 | T54: 0 | U54: 0 | V54: 0 | W54: 0 | X54: 2 | Y54: 2 | Z54: 0 | AA54: 0 | AB54: 0 | AC54: 0 | AD54: 주간 07~19 | AE54: 600 | AF54: 680 | AG54: 80 | AH54: 13%
D55: 15~18 | E55: 220 | F55: 33 | G55: 59 | H55: 21 | I55: 26 | J55: 28 | K55: 49 | L55: 1 | M55: 0 | N55: 1 | O55: 2 | P55: 0 | Q55: 0 | R55: 0 | S55: 0 | T55: 0 | U55: 0 | V55: 0 | W55: 0 | X55: 0 | Y55: 0 | Z55: 0 | AA55: 0 | AB55: 0 | AC55: 0 | AD55: 야간 19~07 | AE55: 69 | AF55: 88 | AG55: 19 | AH55: 28%
B56: 6호 | C56: 36-02-17 (호령-신흥) | D56: 소계 | E56: 191 | F56: =SUM(F57:F58) -> 39 | G56: =SUM(G57:G58) -> 48 | H56: 0 | I56: 0 | J56: 56 | K56: 48 | L56: 0 | M56: 0 | N56: 0 | O56: 0 | P56: 0 | Q56: 0 | R56: 0 | S56: 0 | T56: 0 | U56: 0 | V56: 0 | W56: 0 | X56: 0 | Y56: 0 | Z56: 0 | AA56: 0 | AB56: 0 | AC56: 0 | AD56: 소계 | AE56: 411 | AF56: =SUM(AF57:AF58) -> 424 | AG56: 13 | AH56: 3%
D57: 08~11 | E57: 81 | F57: 13 | G57: 23 | H57: 0 | I57: 0 | J57: 25 | K57: 20 | L57: 0 | M57: 0 | N57: 0 | O57: 0 | P57: 0 | Q57: 0 | R57: 0 | S57: 0 | T57: 0 | U57: 0 | V57: 0 | W57: 0 | X57: 0 | Y57: 0 | Z57: 0 | AA57: 0 | AB57: 0 | AC57: 0 | AD57: 주간 07~19 | AE57: 309 | AF57: 330 | AG57: 21 | AH57: 7%
D58: 15~18 | E58: 110 | F58: 26 | G58: 25 | H58: 0 | I58: 0 | J58: 31 | K58: 28 | L58: 0 | M58: 0 | N58: 0 | O58: 0 | P58: 0 | Q58: 0 | R58: 0 | S58: 0 | T58: 0 | U58: 0 | V58: 0 | W58: 0 | X58: 0 | Y58: 0 | Z58: 0 | AA58: 0 | AB58: 0 | AC58: 0 | AD58: 야간 19~07 | AE58: 102 | AF58: 94 | AG58: -8 | AH58: -8%
B59: 22호 | C59: 36-02-18 (거문-죽촌) | D59: 소계 | E59: 441 | F59: =SUM(F60:F61) -> 153 | G59: =SUM(G60:G61) -> 160 | H59: 0 | I59: 0 | J59: 63 | K59: 60 | L59: 2 | M59: 3 | N59: 0 | O59: 0 | P59: 0 | Q59: 0 | R59: 0 | S59: 0 | T59: 0 | U59: 0 | V59: 0 | W59: 0 | X59: 0 | Y59: 0 | Z59: 0 | AA59: 0 | AB59: 0 | AC59: 0 | AD59: 소계 | AE59: 1,018 | AF59: =SUM(AF60:AF61) -> 1,070 | AG59: 52 | AH59: 5%
D60: 08~11 | E60: 236 | F60: 75 | G60: 83 | H60: 0 | I60: 0 | J60: 38 | K60: 35 | L60: 2 | M60: 3 | N60: 0 | O60: 0 | P60: 0 | Q60: 0 | R60: 0 | S60: 0 | T60: 0 | U60: 0 | V60: 0 | W60: 0 | X60: 0 | Y60: 0 | Z60: 0 | AA60: 0 | AB60: 0 | AC60: 0 | AD60: 주간 07~19 | AE60: 747 | AF60: 790 | AG60: 43 | AH60: 6%
D61: 15~18 | E61: 205 | F61: 78 | G61: 77 | H61: 0 | I61: 0 | J61: 25 | K61: 25 | L61: 0 | M61: 0 | N61: 0 | O61: 0 | P61: 0 | Q61: 0 | R61: 0 | S61: 0 | T61: 0 | U61: 0 | V61: 0 | W61: 0 | X61: 0 | Y61: 0 | Z61: 0 | AA61: 0 | AB61: 0 | AC61: 0 | AD61: 야간 19~07 | AE61: 271 | AF61: 280 | AG61: 9 | AH61: 3%
